bitfinex-derivatives/quotes_ETHF0:USTF0_20241102
["timestamp","ask_amount","ask_price","bid_price","bid_amount"]
[1730582833480,0.9146,2494.0,2493.9,6.44272715]
[1730582833681,0.9146,2494.0,2493.9,4.33835955]
[1730582834078,0.9146,2494.0,2493.9,4.21298756]
[1730582835694,0.9146,2494.0,2493.9,2.25398053]
[1730582835886,0.9146,2494.0,2493.9,5.79239157]
[1730582838877,0.9146,2494.0,2493.9,4.21302216]
[1730582839094,0.9146,2494.0,2493.9,5.79234862]
[1730582839287,0.9146,2494.0,2493.9,5.29079994]
[1730582842798,0.9146,2494.0,2493.9,4.96483332]
[1730582843009,0.9146,2494.0,2493.9,3.70794661]
[1730582843303,0.9146,2494.0,2493.9,5.29084626]
[1730582843500,0.9146,2494.0,2493.9,5.29090466]
[1730582844305,0.9146,2494.0,2493.9,5.29099273]
[1730582844503,0.9146,2494.0,2493.9,3.71155529]
[1730582846505,0.9146,2494.0,2493.9,1.92803229]
[1730582846693,0.9146,2494.0,2493.9,3.71159739]
[1730582847800,0.9146,2494.0,2493.9,4.21314654]
[1730582848105,0.9146,2494.0,2493.9,4.21316782]
[1730582848306,0.9146,2494.0,2493.9,3.71161867]
[1730582849398,0.9146,2494.0,2493.9,4.21317246]
[1730582854212,0.9146,2494.0,2493.9,2.42960736]
[1730582854507,0.9146,2494.0,2493.9,4.21318548]
[1730582857308,0.9146,2494.0,2493.9,4.21321869]
[1730582857508,0.9146,2494.0,2493.9,2.81470453]
[1730582857709,0.9146,2494.0,2493.9,3.71167776]
[1730582860114,0.9146,2494.0,2493.9,2.18466098]
[1730582861116,0.9146,2494.0,2493.9,2.6862112]
[1730582861714,0.9146,2494.0,2493.9,2.18466098]
[1730582863516,0.9146,2494.0,2493.9,2.68621428]
[1730582864018,0.9146,2494.0,2493.9,0.60169122]
[1730582864217,0.9146,2494.0,2493.9,2.3852875]
[1730582864520,0.9146,2494.0,2493.9,1.85865662]
[1730582864720,0.9146,2494.0,2493.9,2.18466639]
[1730582865518,0.9146,2494.0,2493.9,3.71170831]
[1730582866520,0.9146,2494.0,2493.9,3.71171038]
[1730582867920,0.9146,2494.0,2493.9,4.21326112]
[1730582868321,0.9146,2494.0,2493.9,1.92811192]
[1730582868523,0.9146,2494.0,2493.9,4.01264882]
[1730582868720,0.9146,2494.0,2493.9,3.51109635]
[1730582868921,0.9146,2494.0,2493.9,4.01264232]
[1730582869222,0.9146,2494.0,2493.9,4.21326119]
[1730582870627,0.9146,2494.0,2493.9,5.79280759]
[1730582871917,0.9146,2494.0,2493.9,5.79284965]
[1730582872922,0.9146,2494.0,2493.9,4.89584402]
[1730582873127,0.9146,2494.0,2493.9,5.79286957]
[1730582874221,0.9146,2494.0,2493.9,4.21332317]
[1730582880625,0.9146,2494.0,2493.9,6.31934948]
[1730582880923,0.9146,2494.0,2493.9,4.21332317]
[1730582881126,0.9146,2494.0,2493.9,6.31934948]
[1730582881324,0.9146,2494.0,2493.9,4.21332317]
[1730582881519,0.9146,2494.0,2493.9,4.73630796]
[1730582881827,0.9146,2494.0,2493.9,6.01853654]
[1730582882026,0.9146,2494.0,2493.9,4.41405582]
[1730582883028,0.9146,2494.0,2493.9,6.52008213]
[1730582883426,0.9146,2494.0,2493.9,4.41405582]
[1730582884234,0.9146,2494.0,2493.9,6.52008213]
[1730582884426,0.9146,2494.0,2493.9,6.31946221]
[1730582884629,0.9146,2494.0,2493.9,4.2134359]
[1730582884830,0.9146,2494.0,2493.9,6.31946221]
[1730582885239,0.9146,2494.0,2493.9,2.12873015]
[1730582885435,0.9146,2494.0,2493.9,4.41406073]
[1730582885736,0.9146,2494.0,2493.9,6.52008704]
[1730582886238,0.9146,2494.0,2493.9,4.41406073]
[1730582886537,0.9146,2494.0,2493.9,4.41405945]
[1730582886738,0.9146,2494.0,2493.9,6.52006633]
[1730582887035,0.9146,2494.0,2493.9,6.52006436]
[1730582887238,0.9146,2494.0,2493.9,4.41403805]
[1730582888427,0.9146,2494.0,2493.9,6.52006436]
[1730582888833,0.9146,2494.0,2493.9,4.41403805]
[1730582889033,0.9146,2494.0,2493.9,4.53963091]
[1730582892644,0.9146,2494.0,2493.9,2.75587013]
[1730582892842,0.9146,2494.0,2493.9,4.53965437]
[1730582893844,0.9146,2494.0,2493.9,4.53965838]
[1730582894536,0.9146,2494.0,2493.9,4.21365296]
[1730582895343,0.9146,2494.0,2493.9,4.21365194]
[1730582896143,0.9146,2494.0,2493.9,4.01302821]
[1730582896448,0.9146,2494.0,2493.9,4.41427016]
[1730582896642,0.9146,2494.0,2493.9,4.41427037]
[1730582898534,0.9146,2494.0,2493.9,4.41427263]
[1730582901140,0.9146,2494.0,2493.9,6.52029894]
[1730582901744,0.9146,2494.0,2493.9,4.41427263]
[1730582902944,0.9146,2494.0,2493.9,6.52029894]
[1730582903244,0.9146,2494.0,2493.9,4.41427263]
[1730582904242,0.9146,2494.0,2493.9,6.52029894]
[1730582904544,0.9146,2494.0,2493.9,6.31967803]
[1730582904849,0.9146,2494.0,2493.9,9.52746469]
[1730582905942,2.35840066,2494.0,2493.9,7.42143838]
[1730582906148,6.76906066,2494.0,2493.9,2.34092549]
[1730582906448,6.76906066,2494.0,2493.9,0.40107]
[1730582911951,6.94621965,2494.0,2493.9,0.40107]
[1730582917144,7.40511965,2494.0,2493.9,0.40107]
[1730582918451,3.39551965,2494.0,2493.9,0.40107]
[1730582918656,7.40511965,2494.0,2493.9,0.40107]
[1730582920561,3.39551965,2494.0,2493.9,0.40107]
[1730582920854,7.40511965,2494.0,2493.9,0.40107]
[1730582927653,0.4011,2493.9,2493.8,0.40108]
[1730582927956,1.84490066,2493.9,2493.8,0.40108]
[1730582943876,1.84490066,2493.9,2493.8,0.84598]
[1730582947275,1.84490066,2493.9,2493.8,0.97138562]
[1730582949480,1.84490066,2493.9,2493.8,1.09679124]
[1730582949673,1.84490066,2493.9,2493.8,0.97138562]
[1730582950175,1.84490066,2493.9,2493.8,1.65293666]
[1730582952275,1.84490066,2493.9,2493.8,1.85358553]
[1730582952476,1.84490066,2493.9,2493.8,1.65293666]
[1730582953081,1.84490066,2493.9,2493.8,1.52753104]
[1730582953276,1.84490066,2493.9,2493.8,1.65328551]
[1730582954979,1.84490066,2493.9,2493.8,1.52787989]
[1730582956781,1.84490066,2493.9,2493.8,0.84598]
[1730582956977,1.84490066,2493.9,2493.8,1.52788878]
[1730582960890,1.84490066,2493.9,2493.8,1.52788078]
[1730582961082,1.84490066,2493.9,2493.8,0.97138656]
[1730582961390,1.84490066,2493.9,2493.8,1.52788078]
[1730582964597,1.84490066,2493.9,2493.8,1.40247356]
[1730582964995,1.84490066,2493.9,2493.8,1.52787905]
[1730582969005,1.84490066,2493.9,2493.8,1.52787946]
[1730582972309,1.84490066,2493.9,2493.8,1.52787852]
[1730582974199,1.84490066,2493.9,2493.8,1.72852508]
[1730582974406,1.84490066,2493.9,2493.8,1.72852456]
[1730582974607,1.84490066,2493.9,2493.8,1.52787852]
[1730582975413,1.84490066,2493.9,2493.8,0.84598]
[1730582975617,1.84490066,2493.9,2493.8,1.52787455]
[1730582979312,1.84490066,2493.9,2493.8,1.40246992]
[1730582979515,1.84490066,2493.9,2493.8,1.52787772]
[1730582981010,1.84490066,2493.9,2493.8,1.08297772]
[1730582982916,1.84490066,2493.9,2493.8,1.08298004]
[1730582983217,1.84490066,2493.9,2493.8,1.08297963]
[1730582983520,1.84490066,2493.9,2493.8,1.08298038]
[1730582984621,1.84490066,2493.9,2493.8,1.08298077]
[1730582985215,4.08377713,2494.3,2494.0,0.40106]
[1730582985216,0.40103,2494.2,2494.0,0.40106]
[1730582985410,0.40103,2494.2,2493.8,8.99889572]
[1730582985411,0.85693,2494.2,2494.1,0.52644537]
[1730582985612,2.33070066,2494.2,2494.1,0.52644537]
[1730582985812,2.33070066,2494.2,2494.1,1.08290145]
[1730582986218,2.33070066,2494.2,2494.1,0.52644537]
[1730582987621,2.73173066,2494.2,2494.1,0.52644537]
[1730582989318,2.73173066,2494.2,2494.1,0.40104]
[1730582989618,3.16953066,2494.2,2494.1,0.40104]
[1730582990622,0.40106,2494.1,2494.0,0.40104]
[1730582990825,1.84486066,2494.1,2494.0,0.40104]
[1730582991318,1.84486066,2494.1,2494.0,0.52643596]
[1730582994333,1.84486066,2494.1,2494.0,0.65183092]
[1730582995222,1.84486066,2494.1,2494.0,0.52643496]
[1730582998231,1.84486066,2494.1,2494.0,0.40104]
[1730582999028,1.84486066,2494.1,2494.0,0.52643515]
[1730582999331,1.84486066,2494.1,2494.0,0.40104]
[1730583007623,1.84486066,2494.1,2493.9,0.40106]
[1730583007828,0.4604,2494.0,2493.9,0.40106]
[1730583008127,0.86146,2494.0,2493.9,0.52645669]
[1730583008327,0.4604,2494.0,2493.9,0.52645669]
[1730583008527,0.86146,2494.0,2493.9,0.52645669]
[1730583008734,0.4604,2494.0,2493.9,0.52645669]
[1730583010734,0.86146,2494.0,2493.9,0.52645669]
[1730583010935,0.86146,2494.0,2493.9,0.40106]
[1730583011328,0.86146,2494.0,2493.9,0.52645904]
[1730583014936,0.86146,2494.0,2493.9,0.40106]
[1730583015240,0.86146,2494.0,2493.9,0.52646071]
[1730583016533,0.86146,2494.0,2493.9,1.0824877]
[1730583017136,0.86146,2494.0,2493.9,1.08248237]
[1730583017640,0.86146,2494.0,2493.9,0.52645538]
[1730583018442,0.86146,2494.0,2493.9,0.52646072]
[1730583019551,0.86146,2494.0,2493.9,1.08251439]
[1730583019741,0.86146,2494.0,2493.9,0.52646072]
[1730583020540,0.4604,2494.0,2493.9,0.52646072]
[1730583020739,1.44380066,2494.1,2494.0,0.40106]
[1730583020740,1.84484066,2494.1,2494.0,0.40106]
[1730583020941,1.84484066,2494.1,2494.0,0.98426072]
[1730583022543,1.44380066,2494.1,2494.0,0.98426072]
[1730583025451,1.44380066,2494.1,2494.0,1.54035354]
[1730583026052,1.44380066,2494.1,2494.0,1.41495633]
[1730583026355,1.44380066,2494.1,2494.0,1.54034887]
[1730583026750,1.44380066,2494.1,2494.0,1.97534887]
[1730583027658,1.84484066,2494.1,2494.0,1.97534887]
[1730583027860,1.44380066,2494.1,2494.0,1.97534887]
[1730583029254,1.44380066,2494.1,2494.0,1.97534904]
[1730583031362,1.84484066,2494.1,2494.0,1.97534904]
[1730583032963,1.84484066,2494.1,2494.0,1.9754183]
[1730583036462,2.28704066,2494.1,2494.0,1.9754183]
[1730583036668,2.28704066,2494.1,2494.0,1.41925271]
[1730583036967,2.28704066,2494.1,2494.0,1.97541088]
[1730583038766,1.88600066,2494.1,2494.0,1.97541088]
[1730583038966,2.28704066,2494.1,2494.0,1.97541088]
[1730583040072,2.28704066,2494.1,2494.0,1.41925471]
[1730583040266,2.28704066,2494.1,2494.0,1.97539694]
[1730583043672,2.28704066,2494.1,2494.0,1.97537671]
[1730583044671,2.28704066,2494.1,2494.0,1.97537184]
[1730583045373,2.28704066,2494.1,2494.0,1.4192546]
[1730583047780,2.28704066,2494.1,2494.0,1.41925571]
[1730583048666,2.28704066,2494.1,2494.0,1.97537599]
[1730583050871,2.28704066,2494.1,2494.0,1.41925571]
[1730583051078,2.28704066,2494.1,2494.0,1.97537134]
[1730583054667,2.28704066,2494.1,2494.0,1.29386]
[1730583054870,2.28704066,2494.1,2494.0,1.97538802]
[1730583056675,2.28704066,2494.1,2494.0,1.08258802]
[1730583061176,2.28704066,2494.1,2494.0,0.95719185]
[1730583061386,2.28704066,2494.1,2494.0,1.08258773]
[1730583064587,2.28704066,2494.1,2494.0,1.08278801]
[1730583066381,2.28704066,2494.1,2494.0,1.28342304]
[1730583067187,2.28704066,2494.1,2494.0,2.33592223]
[1730583067388,2.28704066,2494.1,2494.0,1.28342304]
[1730583067790,2.28704066,2494.1,2494.0,2.33592223]
[1730583068088,2.28704066,2494.1,2494.0,2.21063685]
[1730583068294,2.28704066,2494.1,2494.0,2.33603344]
[1730583068595,2.28704066,2494.1,2494.0,1.28355108]
[1730583069190,2.28704066,2494.1,2494.0,2.33605027]
[1730583071096,2.28704066,2494.1,2494.0,1.08291667]
[1730583071690,2.28704066,2494.1,2494.0,0.40106]
[1730583071884,2.28704066,2494.1,2494.0,1.08291828]
[1730583072794,2.28704066,2494.1,2494.0,0.68185828]
[1730583075292,2.28704066,2494.1,2494.0,0.68181495]
[1730583076904,2.28704066,2494.1,2494.0,1.08287495]
[1730583078995,2.28704066,2494.1,2494.0,1.0828318]
[1730583079201,2.28704066,2494.1,2494.0,0.40106]
[1730583079602,2.28704066,2494.1,2494.0,1.08283035]
[1730583081598,2.28704066,2494.1,2494.0,1.08282994]
[1730583082502,2.28704066,2494.1,2494.0,0.52646072]
[1730583082702,2.28704066,2494.1,2494.0,0.52646159]
[1730583086307,2.28704066,2494.1,2494.0,0.52645966]
[1730583089110,2.28704066,2494.1,2494.0,1.0827726]
[1730583089409,2.28704066,2494.1,2494.0,0.52645966]
[1730583089903,2.28704066,2494.1,2494.0,0.65185961]
[1730583090301,2.28704066,2494.1,2494.0,0.52645966]
[1730583090502,2.28704066,2494.1,2494.0,0.65185811]
[1730583092321,2.28704066,2494.1,2494.0,1.20816812]
[1730583093110,2.28704066,2494.1,2494.0,0.65185811]
[1730583093606,2.28704066,2494.1,2494.0,1.20816642]
[1730583094006,2.28704066,2494.1,2494.0,0.65185811]
[1730583095808,2.28704066,2494.1,2494.0,0.52645845]
[1730583096001,1.88600066,2494.1,2494.0,0.52645845]
[1730583096201,2.28704066,2494.1,2494.0,0.52645845]
[1730583096401,2.28704066,2494.1,2494.0,1.08276575]
[1730583097204,2.28704066,2494.1,2494.0,1.08276663]
[1730583099516,1.88600066,2494.1,2494.0,1.08276663]
[1730583099709,2.28704066,2494.1,2494.0,1.08276663]
[1730583100418,1.88600066,2494.1,2494.0,1.08276663]
[1730583100608,2.28704066,2494.1,2494.0,1.08276663]
[1730583100804,2.28704066,2494.1,2494.0,0.52645632]
[1730583101108,1.88600066,2494.1,2494.0,0.52645632]
[1730583101312,1.88600066,2494.1,2494.0,1.50848493]
[1730583101715,2.28704066,2494.1,2494.0,1.50848493]
[1730583104411,2.28704066,2494.1,2494.0,0.82676]
[1730583104615,2.28704066,2494.1,2494.0,1.50849286]
[1730583105012,2.28704066,2494.1,2494.0,1.50849619]
[1730583108113,2.28704066,2494.1,2494.0,1.50850083]
[1730583109218,2.28704066,2494.1,2494.0,1.508495]
[1730583111015,1.88600066,2494.1,2494.0,1.508495]
[1730583111412,1.88600066,2494.1,2494.0,0.95215784]
[1730583111615,1.88600066,2494.1,2494.0,1.63388759]
[1730583113020,2.28704066,2494.1,2494.0,1.63388759]
[1730583114616,1.88600066,2494.1,2494.0,1.63388759]
[1730583115321,1.88600066,2494.1,2494.0,1.5085021]
[1730583115622,1.88600066,2494.1,2494.0,1.5085071]
[1730583115822,1.88600066,2494.1,2494.0,1.63390317]
[1730583116021,1.88600066,2494.1,2494.0,1.50850533]
[1730583117121,2.28704066,2494.1,2494.0,1.50850533]
[1730583118222,1.88600066,2494.1,2494.0,1.50850533]
[1730583118630,0.4422,2494.1,2494.0,1.50850533]
[1730583118820,2.31250066,2494.2,2494.0,0.4257]
[1730583119124,2.31250066,2494.2,2494.1,1.51048232]
[1730583120124,2.73320066,2494.2,2494.1,1.51048232]
[1730583121322,2.73320066,2494.2,2494.1,1.51045398]
[1730583122323,5.07745,2494.6,2494.1,5.11901398]
[1730583122324,1.44380066,2494.4,2494.1,5.11901398]
[1730583122624,1.44380066,2494.4,2494.3,0.40101]
[1730583122823,1.44380066,2494.4,2494.3,1.08265525]
[1730583123620,1.44380066,2494.4,2494.3,1.08251296]
[1730583123825,1.44380066,2494.4,2494.3,0.52640301]
[1730583124127,1.90430066,2494.4,2494.3,0.52640301]
[1730583124927,1.90430066,2494.4,2494.3,0.40101]
[1730583125232,1.90430066,2494.4,2494.3,0.52639151]
[1730583125930,1.90430066,2494.4,2494.3,0.96159151]
[1730583127330,1.90430066,2494.4,2494.3,0.83621]
[1730583127534,1.90430066,2494.4,2494.3,0.9615904]
[1730583128026,1.90430066,2494.4,2494.3,0.83621]
[1730583128324,1.90430066,2494.4,2494.3,0.96159014]
[1730583128636,1.90430066,2494.4,2494.3,0.83621]
[1730583129039,1.90430066,2494.4,2494.3,0.96158859]
[1730583129233,1.90430066,2494.4,2494.3,0.83621]
[1730583129639,1.90430066,2494.4,2494.3,0.96158934]
[1730583131742,1.90430066,2494.4,2494.3,0.96158866]
[1730583131938,1.90430066,2494.4,2494.3,0.83621]
[1730583132141,1.90430066,2494.4,2494.3,0.9615889]
[1730583132537,1.90430066,2494.4,2494.3,0.83621]
[1730583133041,4.65160066,2494.6,2494.3,4.9703905]
[1730583133245,5.09530066,2494.6,2494.5,0.40098]
[1730583134436,1.88750066,2494.6,2494.5,0.40098]
[1730583139646,1.88750066,2494.6,2494.5,0.82858]
[1730583141847,0.4437,2494.6,2494.5,0.82858]
[1730583149161,0.4437,2494.6,2494.5,0.40098]
[1730583162464,0.4437,2494.6,2494.5,0.5263432]
[1730583165474,0.4437,2494.6,2494.5,0.40098]
[1730583165676,0.4437,2494.6,2494.5,0.52634181]
[1730583167769,0.4437,2494.6,2494.5,1.08196666]
[1730583168865,0.4437,2494.6,2494.5,0.52634181]
[1730583169073,0.4437,2494.6,2494.5,1.08204675]
[1730583172669,0.4437,2494.6,2494.5,0.95668396]
[1730583172869,0.4437,2494.6,2494.5,1.08212311]
[1730583174478,0.4437,2494.6,2494.5,1.28269946]
[1730583175372,0.4437,2494.6,2494.5,2.33553839]
[1730583175575,0.4437,2494.6,2494.5,1.28269946]
[1730583175977,0.8501,2494.7,2494.6,0.40096]
[1730583176176,0.8501,2494.7,2494.6,1.08210311]
[1730583176372,0.8501,2494.7,2494.6,0.82376]
[1730583176577,0.8501,2494.7,2494.6,1.50501709]
[1730583176776,0.8501,2494.7,2494.6,0.82376]
[1730583176968,0.8501,2494.7,2494.6,1.50501943]
[1730583177674,0.8501,2494.7,2494.6,0.94912133]
[1730583178275,0.8501,2494.7,2494.6,1.50504745]
[1730583178882,0.4251,2494.7,2494.6,1.50504745]
[1730583179079,0.4251,2494.7,2494.6,5.51388232]
[1730583179283,0.4251,2494.7,2494.6,9.17963633]
[1730583179473,0.4251,2494.7,2494.6,9.1795842]
[1730583179781,0.4251,2494.7,2494.6,8.12674527]
[1730583179975,0.4251,2494.7,2494.6,9.70600367]
[1730583180171,0.4251,2494.7,2494.6,8.26059207]
[1730583180473,0.4251,2494.7,2494.6,7.16201383]
[1730583180975,0.444,2494.9,2494.6,8.41466802]
[1730583181174,0.444,2494.9,2494.8,0.40093]
[1730583181374,0.444,2494.9,2494.8,1.08221009]
[1730583181567,0.444,2494.9,2494.8,0.52628091]
[1730583181775,0.444,2494.9,2494.8,1.08211567]
[1730583181976,0.444,2494.9,2494.8,1.08211119]
[1730583182177,0.444,2494.9,2494.8,2.13418924]
[1730583183475,0.444,2494.9,2494.8,1.08211119]
[1730583185287,0.444,2494.9,2494.8,0.52628091]
[1730583185482,0.444,2494.9,2494.8,1.0831682]
[1730583186283,0.444,2494.9,2494.8,0.52628091]
[1730583186487,0.444,2494.9,2494.8,1.08309797]
[1730583186784,0.444,2494.9,2494.8,0.95773845]
[1730583187084,0.444,2494.9,2494.8,0.52627495]
[1730583187283,0.444,2494.9,2494.8,0.52627468]
[1730583187582,0.444,2494.9,2494.8,1.08308681]
[1730583190483,0.444,2494.9,2494.8,1.08308658]
[1730583193389,0.444,2494.9,2494.8,1.08275322]
[1730583193591,0.444,2494.9,2494.8,0.52627445]
[1730583193991,0.444,2494.9,2494.8,0.95647445]
[1730583194486,0.444,2494.9,2494.8,0.83113]
[1730583194997,0.444,2494.9,2494.8,0.95647443]
[1730583195691,0.444,2494.9,2494.8,1.51291399]
[1730583198187,0.8612,2495.0,2494.9,0.40091]
[1730583201688,0.8612,2495.0,2494.9,0.52625066]
[1730583201992,0.8612,2495.0,2494.9,0.40091]
[1730583206187,0.4279,2495.0,2494.9,0.40091]
[1730583206696,0.4279,2495.0,2494.9,4.40891]
[1730583207197,0.4279,2495.0,2494.9,0.52624765]
[1730583207383,0.4279,2495.0,2494.9,0.52624764]
[1730583207692,0.4279,2495.0,2494.9,0.40091]
[1730583208689,0.4279,2495.0,2494.9,0.5262482]
[1730583208991,0.4279,2495.0,2494.9,0.52624766]
[1730583209199,0.4279,2495.0,2494.9,0.40091]
[1730583209591,0.4279,2495.0,2494.9,0.95723643]
[1730583209893,0.4279,2495.0,2494.9,1.08257457]
[1730583210401,0.4279,2495.0,2494.9,0.40091]
[1730583210604,0.4279,2495.0,2494.9,1.08257009]
[1730583211698,0.4279,2495.0,2494.9,1.08259069]
[1730583217825,0.4279,2495.0,2494.9,1.08286431]
[1730583219024,0.4279,2495.0,2494.9,2.13494236]
[1730583219529,0.4279,2495.0,2494.9,2.33548403]
[1730583221023,0.4279,2495.0,2494.9,1.28340598]
[1730583221428,0.4279,2495.0,2494.9,0.40091]
[1730583221729,0.4279,2495.0,2494.9,1.28362844]
[1730583221930,0.4279,2495.0,2494.9,1.4089772]
[1730583223337,0.4279,2495.0,2494.9,2.30019988]
[1730583223630,0.4279,2495.0,2494.9,3.35227793]
[1730583224531,0.4279,2495.0,2494.9,2.46105382]
[1730583224924,0.4279,2495.0,2494.9,3.90485448]
[1730583225121,0.4279,2495.0,2494.9,5.9535228]
[1730583225326,0.4506,2495.1,2495.0,0.4009]
[1730583225528,0.4506,2495.1,2495.0,4.27490963]
[1730583225830,0.4506,2495.1,2495.0,3.8401391]
[1730583227430,0.4506,2495.1,2495.0,4.16599068]
[1730583227727,0.4506,2495.1,2495.0,7.37379068]
[1730583228930,0.4506,2495.1,2495.0,7.90129795]
[1730583229426,0.4506,2495.1,2495.0,8.45839813]
[1730583230832,0.4506,2495.1,2495.0,7.77597042]
[1730583231130,0.4506,2495.1,2495.0,8.10182818]
[1730583231328,0.4506,2495.1,2495.0,8.65888338]
[1730583231631,0.4506,2495.1,2495.0,8.65873476]
[1730583232431,0.4506,2495.1,2495.0,9.54999671]
[1730583233724,0.4506,2495.1,2495.0,6.34219671]
[1730583233926,0.4506,2495.1,2495.0,9.54999671]
[1730583234333,0.4506,2495.1,2495.0,7.7758218]
[1730583234531,0.4506,2495.1,2495.0,9.54993]
[1730583234831,0.4506,2495.1,2495.0,9.22408015]
[1730583235133,0.4506,2495.1,2495.0,9.42460453]
[1730583235335,0.4506,2495.1,2495.0,6.21680453]
[1730583235530,0.4506,2495.1,2495.0,6.34213359]
[1730583236032,0.44,2495.4,2495.3,0.40085]
[1730583236233,0.893,2495.4,2495.3,1.0832015]
[1730583236435,0.893,2495.4,2495.3,1.08316122]
[1730583237635,0.893,2495.4,2495.3,0.52617906]
[1730583238332,0.893,2495.4,2495.3,1.08312093]
[1730583238529,0.893,2495.4,2495.3,1.2084451]
[1730583239531,0.893,2495.4,2495.3,0.65150323]
[1730583241137,0.893,2495.4,2495.3,0.52617906]
[1730583241338,0.893,2495.4,2495.3,0.65149952]
[1730583244141,0.893,2495.4,2495.3,0.52617906]
[1730583244942,0.893,2495.4,2495.3,0.65149965]
[1730583247535,0.893,2495.4,2495.3,1.09233374]
[1730583247937,0.4363,2495.6,2495.3,4.5080497]
[1730583248250,0.4363,2495.6,2495.5,0.40082]
[1730583248437,0.4363,2495.6,2495.5,1.09224631]
[1730583251241,0.4363,2495.6,2495.5,0.40082]
[1730583251437,0.4363,2495.6,2495.5,1.09192348]
[1730583253340,0.4363,2495.6,2495.5,2.14175233]
[1730583253535,0.4363,2495.6,2495.5,1.09192348]
[1730583254637,0.4363,2495.6,2495.5,0.40082]
[1730583263143,0.4363,2495.6,2495.5,0.5261345]
[1730583264348,0.4363,2495.6,2495.5,1.09171317]
[1730583265648,0.4363,2495.6,2495.5,0.40082]
[1730583265845,0.4363,2495.6,2495.5,1.09173712]
[1730583266050,0.4363,2495.6,2495.5,0.96642166]
[1730583266447,0.4363,2495.6,2495.5,1.0917365]
[1730583266945,0.8759,2495.8,2495.7,0.40078]
[1730583270356,1.44380066,2496.2,2496.1,0.40072]
[1730583270651,1.89280066,2496.2,2496.1,0.40072]
[1730583271661,2.75680066,2496.2,2496.1,0.40072]
[1730583276263,1.313,2496.2,2496.1,0.40072]
[1730583282369,1.313,2496.2,2496.1,1.84452066]
[1730583282370,0.8716,2496.2,2496.1,1.84452066]
[1730583282579,0.8716,2496.2,2496.1,4.00481952]
[1730583283076,0.8716,2496.2,2496.1,4.20524983]
[1730583283274,0.8716,2496.2,2496.1,4.00481952]
[1730583283477,0.8716,2496.2,2496.1,3.31464951]
[1730583283679,0.8716,2496.2,2496.1,4.00465815]
[1730583285576,0.8716,2496.2,2496.1,2.9548293]
[1730583286979,0.4226,2496.2,2496.1,2.9548293]
[1730583287281,0.4226,2496.2,2496.1,1.09047656]
[1730583287476,0.4226,2496.2,2496.1,0.40072]
[1730583296678,0.847,2496.2,2496.1,0.40072]
[1730583310488,0.847,2496.2,2496.1,0.52600213]
[1730583311386,0.847,2496.2,2496.1,1.09152495]
[1730583311988,0.847,2496.2,2496.1,0.96624282]
[1730583312385,0.847,2496.2,2496.1,1.09164541]
[1730583315887,0.847,2496.2,2496.1,1.09203093]
[1730583318092,0.847,2496.2,2496.1,0.52600331]
[1730583318293,0.847,2496.2,2496.1,1.09219368]
[1730583319489,0.847,2496.2,2496.1,0.52600331]
[1730583319695,0.847,2496.2,2496.1,1.09223654]
[1730583319890,0.847,2496.2,2496.1,0.40072]
[1730583320091,0.847,2496.2,2496.1,1.09221141]
[1730583320500,0.847,2496.2,2496.1,1.29266106]
[1730583320699,0.847,2496.2,2496.1,1.09221141]
[1730583322297,0.847,2496.2,2496.1,1.29266381]
[1730583322698,0.847,2496.2,2496.1,3.24802707]
[1730583322900,0.847,2496.2,2496.1,2.19870208]
[1730583323400,0.847,2496.2,2496.1,0.40072]
[1730583323601,0.847,2496.2,2496.1,0.60117254]
[1730583323904,0.847,2496.2,2496.1,4.9209471]
[1730583327203,0.847,2496.2,2496.1,2.27399228]
[1730583327405,0.847,2496.2,2496.1,4.07219738]
[1730583327996,0.847,2496.2,2496.1,2.59982986]
[1730583328297,0.847,2496.2,2496.1,2.1989251]
[1730583330306,0.847,2496.2,2496.1,1.09233734]
[1730583331104,0.847,2496.2,2496.1,1.21761959]
[1730583331802,0.847,2496.2,2496.1,1.21780762]
[1730583332199,0.847,2496.2,2496.1,1.64740762]
[1730583332399,0.847,2496.2,2496.1,2.89716394]
[1730583334211,0.847,2496.2,2496.1,4.41877049]
[1730583334408,0.847,2496.2,2496.1,3.85225383]
[1730583334613,0.847,2496.2,2496.1,4.94355538]
[1730583334914,0.847,2496.2,2496.1,3.36959865]
[1730583335103,0.847,2496.2,2496.1,4.94355538]
[1730583336008,0.847,2496.2,2496.1,3.36959865]
[1730583336809,0.847,2496.2,2496.1,4.42118372]
[1730583337115,0.847,2496.2,2496.1,3.36959865]
[1730583337409,0.847,2496.2,2496.1,4.27622448]
[1730583337610,0.847,2496.2,2496.1,4.27629188]
[1730583338112,0.847,2496.2,2496.1,4.15100884]
[1730583339509,0.847,2496.2,2496.1,5.72496557]
[1730583339814,0.847,2496.2,2496.1,5.20262378]
[1730583340015,0.847,2496.2,2496.1,4.15100884]
[1730583340313,0.847,2496.2,2496.1,5.202609]
[1730583340512,0.847,2496.2,2496.1,5.72496557]
[1730583340714,0.847,2496.2,2496.1,4.15100884]
[1730583341509,0.847,2496.2,2496.1,5.72496557]
[1730583341916,0.847,2496.2,2496.1,5.72505153]
[1730583342108,0.847,2496.2,2496.1,4.1510948]
[1730583342409,0.847,2496.2,2496.1,3.6811051]
[1730583342616,0.847,2496.2,2496.1,3.68113975]
[1730583347818,0.847,2496.2,2496.1,3.68113579]
[1730583348711,0.847,2496.2,2496.1,2.89977842]
[1730583349026,0.847,2496.2,2496.1,3.80658161]
[1730583349213,0.847,2496.2,2496.1,5.32856971]
[1730583349411,0.847,2496.2,2496.1,5.85084219]
[1730583352423,0.847,2496.2,2496.1,5.32875126]
[1730583352816,0.847,2496.2,2496.1,5.32883019]
[1730583353222,0.847,2496.2,2496.1,4.27696439]
[1730583353816,0.847,2496.2,2496.1,5.32880272]
[1730583354126,0.847,2496.2,2496.1,4.27696439]
[1730583354623,0.847,2496.2,2496.1,5.32880645]
[1730583355220,0.847,2496.2,2496.1,5.85092112]
[1730583355817,0.847,2496.2,2496.1,4.27696439]
[1730583356021,0.847,2496.2,2496.1,5.85092112]
[1730583356327,0.847,2496.2,2496.1,3.80678338]
[1730583358322,0.847,2496.2,2496.1,3.68150038]
[1730583359626,0.847,2496.2,2496.1,1.88212709]
[1730583359827,0.847,2496.2,2496.1,3.68146828]
[1730583362030,0.847,2496.2,2496.1,1.88212709]
[1730583362231,0.847,2496.2,2496.1,3.55610453]